[Event "Satka Autumn 2019"]
[Site "Satka"]
[Date "2019.09.27"]
[Round "9.5"]
[White "Nosacheva, Mariya"]
[Black "Lysenko, Margarita"]
[Result "1-0"]
[ECO "B90"]
[WhiteElo "2193"]
[BlackElo "2249"]
[Annotator "ChessBase"]
[PlyCount "133"]
[EventDate "2019.09.19"]
[EventType "swiss"]
[EventCountry "RUS"]
[SourceTitle "playchess.com"]
[Source "ChessBase"]
[SourceQuality "1"]
[TimeControl "5400+30"]

1. e4 {[%emt 0:00:00]} c5 {[%emt 0:00:00]} 2. Nf3 {[%emt 0:00:00]} d6 {[%emt 0:00:06]} 3. d4 {[%emt 0:00:00]} cxd4 {[%emt 0:00:06]} 4. Nxd4 {[%emt 0:00:00]} Nf6 {[%emt 0:00:07]} 5. Nc3 {[%emt 0:00:00]} a6 {[%emt 0:00:07]} 6. h3 {[%emt 0:00:06]} e5 {[%emt 0:00:20]} 7. Nde2 {[%emt 0:00:06]} h5 {[%emt 0:00:46]} 8. g3 {[%emt 0:01:44]} Be7 {[%emt 0:05:59]} 9. Bg2 {[%emt 0:10:08]} Be6 {[%emt 0:17:18]} 10. a4 {[%emt 0:05:06]} Nbd7 {[%emt 0:12:37]} 11. Be3 {[%emt 0:00:17]} Nb6 {[%emt 0:07:14]} 12. b3 {[%emt 0:00:43]} Rc8 {[%emt 0:01:39]} 13. O-O {[%emt 0:00:15]} h4 {[%emt 0:15:40]} 14. a5 {[%emt 0:01:08]} Nbd7 {[%emt 0:04:20]} 15. f4 {[%emt 0:00:30]} Nb8 {[%emt 0:10:24]} 16. f5 {[%emt 0:00:16]} Bd7 {[%emt 0:00:24]} 17. Bb6 {[%emt 0:00:06]} Rc7 {[%emt 0:00:03]} 18. Nd5 {[%emt 0:11:00]} Nxd5 {[%emt 0:00:14]} 19. exd5 {[%emt 0:00:21]} hxg3 {[%emt 0:02:11]} 20. Nxg3 {[%emt 0:00:29]} Qc8 {[%emt 0:00:49]} 21. c4 {[%emt 0:02:30]} Rh4 {[%emt 0:03:52]} 22. Bxc7 {[%emt 0:03:31]} Qxc7 {[%emt 0:00:02]} 23. Ne4 {[%emt 0:00:16]} g6 {[%emt 0:03:26]} 24. fxg6 {[%emt 0:06:53]} fxg6 {[%emt 0:00:02]} 25. c5 {[%emt 0:02:59]} Bf5 {[%emt 0:01:54]} 26. cxd6 {[%emt 0:05:43]} Bxd6 {[%emt 0:00:09]} 27. Rc1 {[%emt 0:00:18]} Qe7 {[%emt 0:00:29]} 28. Qc2 {[%emt 0:05:53]} Nd7 {[%emt 0:08:21]} 29. Rxf5 {[%emt 0:08:06]} gxf5 {[%emt 0:00:23]} 30. Nxd6+ {[%emt 0:00:05]} Qxd6 {[%emt 0:00:22]} 31. Qxf5 {[%emt 0:00:05]} Qf6 {[%emt 0:02:33]} 32. Qe6+ {[%emt 0:03:07]} Kd8 {[%emt 0:02:22]} 33. Qg8+ {[%emt 0:01:09]} Qf8 {[%emt 0:00:26]} 34. Qg5+ {[%emt 0:01:36]} Qf6 {[%emt 0:00:09]} 35. Qg8+ {[%emt 0:00:49]} Qf8 {[%emt 0:00:08]} 36. Qxf8+ {[%emt 0:05:01]} Nxf8 {[%emt 0:00:06]} 37. d6 {[%emt 0:02:59]} Kd7 {[%emt 0:02:05]} 38. Bxb7 {[%emt 0:00:25]} Rb4 {[%emt 0:01:12]} 39. Bxa6 {[%emt 0:01:43]} Rxb3 {[%emt 0:00:10]} 40. Bc8+ {[%emt 0:00:00]} Kxd6 {[%emt 0:00:00]} 41. Ra1 {[%emt 0:00:00]} Rb8 {[%emt 0:00:00]} 42. Bf5 {[%emt 0:00:00]} Ra8 {[%emt 0:00:00]} 43. a6 {[%emt 0:00:00]} Ra7 {[%emt 0:00:00]} 44. Kf2 {[%emt 0:00:00]} Kc7 {[%emt 0:00:00]} 45. Ke3 {[%emt 0:00:00]} Kb8 {[%emt 0:00:00]} 46. Ke4 {[%emt 0:00:00]} Re7 {[%emt 0:00:00]} 47. a7+ {[%emt 0:00:00]} Ka8 {[%emt 0:00:00]} 48. Kd5 {[%emt 0:00:00]} Rb7 {[%emt 0:01:51]} 49. Kxe5 {[%emt 0:00:00]} Nd7+ {[%emt 0:00:35]} 50. Bxd7 {[%emt 0:00:00]} Rxd7 {[%emt 0:00:04]} 51. h4 {[%emt 0:00:00]} Rb7 {[%emt 0:02:18]} 52. Ra5 {[%emt 0:00:00]} Rb1 {[%emt 0:01:30]} 53. Kf6 {[%emt 0:00:00]} Rf1+ {[%emt 0:00:09]} 54. Kg6 {[%emt 0:00:00]} Rg1+ {[%emt 0:01:12]} 55. Kh7 {[%emt 0:00:00]} Rh1 {[%emt 0:00:43]} 56. h5 {[%emt 0:00:00]} Rc1 {[%emt 0:00:23]} 57. Ra6 {[%emt 0:00:00]} Rg1 {[%emt 0:00:34]} 58. h6 {[%emt 0:00:00]} Rg2 {[%emt 0:00:21]} 59. Rg6 {[%emt 0:00:00]} Rc2 {[%emt 0:00:22]} 60. Kh8 {[%emt 0:00:00]} Rc1 {[%emt 0:00:45]} 61. h7 {[%emt 0:00:00]} Kxa7 {[%emt 0:00:35]} 62. Kg7 {[%emt 0:00:00]} Rc7+ {[%emt 0:00:15]} 63. Kh6 {[%emt 0:00:00]} Rc8 {[%emt 0:00:08]} 64. Rg8 {[%emt 0:00:00]} Rc6+ {[%emt 0:00:05]} 65. Kg5 {[%emt 0:00:00]} Rc5+ {[%emt 0:00:06]} 66. Kf4 {[%emt 0:00:00]} Rc4+ {[%emt 0:00:06]} 67. Ke5 {[%emt 0:00:00]} 1-0

[Event "Satka Autumn 2019"]
[Site "Satka"]
[Date "2019.09.27"]
[Round "9.6"]
[White "Mukhina, Jana"]
[Black "Schepetkova, Margarita"]
[Result "0-1"]
[ECO "E22"]
[WhiteElo "2083"]
[BlackElo "2194"]
[Annotator "ChessBase"]
[PlyCount "114"]
[EventDate "2019.09.19"]
[EventType "swiss"]
[EventCountry "RUS"]
[SourceTitle "playchess.com"]
[Source "ChessBase"]
[SourceQuality "1"]
[TimeControl "5400+30"]

1. d4 {[%emt 0:00:00]} Nf6 {[%emt 0:00:00]} 2. c4 {[%emt 0:00:00]} e6 {[%emt 0:00:24]} 3. Nc3 {[%emt 0:00:00]} Bb4 {[%emt 0:00:07]} 4. Qb3 {[%emt 0:00:00]} Nc6 {[%emt 0:02:01]} 5. e3 {[%emt 0:13:27]} O-O {[%emt 0:03:04]} 6. Bd3 {[%emt 0:02:47]} d5 {[%emt 0:01:01]} 7. cxd5 {[%emt 0:08:04]} Qxd5 {[%emt 0:03:54]} 8. Qxd5 {[%emt 0:00:32]} exd5 {[%emt 0:00:27]} 9. Nge2 {[%emt 0:02:02]} Ne7 {[%emt 0:08:50]} 10. a3 {[%emt 0:00:47]} Ba5 {[%emt 0:02:24]} 11. b4 {[%emt 0:01:03]} Bb6 {[%emt 0:00:02]} 12. a4 {[%emt 0:07:13]} c6 {[%emt 0:04:46]} 13. Ng3 {[%emt 0:03:49]} h5 {[%emt 0:01:25]} 14. h4 {[%emt 0:08:03]} Bc7 {[%emt 0:01:37]} 15. Nce2 {[%emt 0:00:01]} Bd6 {[%emt 0:03:43]} 16. Bd2 {[%emt 0:03:33]} g6 {[%emt 0:01:04]} 17. O-O {[%emt 0:03:17]} b6 {[%emt 0:01:45]} 18. f3 {[%emt 0:14:00]} c5 {[%emt 0:01:04]} 19. bxc5 {[%emt 0:00:47]} bxc5 {[%emt 0:00:03]} 20. dxc5 {[%emt 0:01:23]} Bxc5 {[%emt 0:00:08]} 21. Nd4 {[%emt 0:00:06]} Bd7 {[%emt 0:02:54]} 22. Nge2 {[%emt 0:01:05]} Rfc8 {[%emt 0:00:41]} 23. Rfc1 {[%emt 0:01:59]} Rab8 {[%emt 0:01:25]} 24. Bb5 {[%emt 0:02:07]} Bxb5 {[%emt 0:02:58]} 25. axb5 {[%emt 0:00:02]} Nd7 {[%emt 0:01:18]} 26. Nc6 {[%emt 0:04:35]} Nxc6 {[%emt 0:01:25]} 27. bxc6 {[%emt 0:00:06]} Rxc6 {[%emt 0:00:08]} 28. Rxa7 {[%emt 0:01:42]} Ne5 {[%emt 0:01:07]} 29. Nd4 {[%emt 0:07:41]} Bxd4 {[%emt 0:00:51]} 30. exd4 {[%emt 0:00:05]} Rxc1+ {[%emt 0:01:42]} 31. Bxc1 {[%emt 0:00:02]} Nc6 {[%emt 0:00:10]} 32. Ra1 {[%emt 0:04:47]} Nxd4 {[%emt 0:00:10]} 33. Bg5 {[%emt 0:00:13]} Ne6 {[%emt 0:07:03]} 34. Bf6 {[%emt 0:00:43]} Nf8 {[%emt 0:00:40]} 35. Ra5 {[%emt 0:00:57]} Nh7 {[%emt 0:03:18]} 36. Bd4 {[%emt 0:06:30]} Rd8 {[%emt 0:00:03]} 37. Bb6 {[%emt 0:00:06]} Rd7 {[%emt 0:00:34]} 38. Ra8+ {[%emt 0:00:30]} Kg7 {[%emt 0:00:05]} 39. Bd4+ {[%emt 0:00:03]} f6 {[%emt 0:00:05]} 40. Ra6 {[%emt 0:00:00]} Kf7 {[%emt 0:00:00]} 41. Kf2 {[%emt 0:00:00]} f5 {[%emt 0:00:00]} 42. g3 {[%emt 0:00:00]} Nf8 {[%emt 0:00:00]} 43. Rf6+ {[%emt 0:00:00]} Ke7 {[%emt 0:00:00]} 44. Rb6 {[%emt 0:00:00]} Ne6 {[%emt 0:00:00]} 45. Ke3 {[%emt 0:00:00]} Kf7 {[%emt 0:00:00]} 46. f4 {[%emt 0:00:00]} Ra7 {[%emt 0:00:00]} 47. Rb3 {[%emt 0:00:00]} Ra4 {[%emt 0:00:00]} 48. Be5 {[%emt 0:00:00]} d4+ {[%emt 0:00:00]} 49. Kf3 {[%emt 0:00:00]} Nc5 {[%emt 0:00:00]} 50. Rb5 {[%emt 0:00:00]} Ne4 {[%emt 0:00:00]} 51. Rb7+ {[%emt 0:00:10]} Ke6 {[%emt 0:00:00]} 52. Rg7 {[%emt 0:00:55]} Ra3+ {[%emt 0:00:00]} 53. Ke2 {[%emt 0:00:19]} d3+ {[%emt 0:00:00]} 54. Kd1 {[%emt 0:01:50]} Rb3 {[%emt 0:00:00]} 55. Rxg6+ {[%emt 0:00:30]} Kd5 {[%emt 0:00:00]} 56. Kc1 {[%emt 0:00:19]} d2+ {[%emt 0:00:00]} 57. Kc2 {[%emt 0:00:02]} Rd3 {[%emt 0:00:00]} 0-1

[Event "Satka Autumn 2019"]
[Site "Satka"]
[Date "2019.09.27"]
[Round "9.7"]
[White "Charochkina, Daria"]
[Black "Prudnikova, Svetlana"]
[Result "1-0"]
[ECO "A01"]
[WhiteElo "2360"]
[BlackElo "2234"]
[Annotator "ChessBase"]
[PlyCount "59"]
[EventDate "2019.09.19"]
[EventType "swiss"]
[EventCountry "RUS"]
[SourceTitle "playchess.com"]
[Source "ChessBase"]
[SourceQuality "1"]
[TimeControl "5400+30"]

1. b3 {[%emt 0:00:00]} e5 {[%emt 0:00:00]} 2. Bb2 {[%emt 0:00:00]} Nc6 {[%emt 0:00:10]} 3. e3 {[%emt 0:00:00]} d6 {[%emt 0:01:11]} 4. Ne2 {[%emt 0:00:36]} g6 {[%emt 0:02:28]} 5. d4 {[%emt 0:03:13]} Bg7 {[%emt 0:00:41]} 6. d5 {[%emt 0:04:07]} Nce7 {[%emt 0:06:16]} 7. c4 {[%emt 0:00:35]} h5 {[%emt 0:02:01]} 8. h4 {[%emt 0:07:05]} Nh6 {[%emt 0:00:46]} 9. Nbc3 {[%emt 0:01:46]} O-O {[%emt 0:05:16]} 10. Ne4 {[%emt 0:02:05]} f6 {[%emt 0:07:05]} 11. N2c3 {[%emt 0:00:55]} b6 {[%emt 0:01:01]} 12. Qd2 {[%emt 0:01:33]} Nf7 {[%emt 0:01:44]} 13. O-O-O {[%emt 0:06:59]} a6 {[%emt 0:00:45]} 14. Bd3 {[%emt 0:04:48]} f5 {[%emt 0:02:50]} 15. Ng5 {[%emt 0:00:29]} Nxg5 {[%emt 0:00:23]} 16. hxg5 {[%emt 0:00:06]} Bd7 {[%emt 0:00:27]} 17. Kb1 {[%emt 0:02:12]} Nc8 {[%emt 0:13:47]} 18. f4 {[%emt 0:07:50]} e4 {[%emt 0:01:18]} 19. Bc2 {[%emt 0:00:32]} b5 {[%emt 0:00:35]} 20. cxb5 {[%emt 0:01:24]} axb5 {[%emt 0:00:47]} 21. g4 {[%emt 0:01:04]} hxg4 {[%emt 0:07:25]} 22. Nxe4 {[%emt 0:06:15]} Bxb2 {[%emt 0:02:09]} 23. Kxb2 {[%emt 0:03:42]} Qe7 {[%emt 0:05:33]} 24. Qd4 {[%emt 0:01:42]} fxe4 {[%emt 0:05:52]} 25. Rh8+ {[%emt 0:00:04]} Kf7 {[%emt 0:00:02]} 26. Rdh1 {[%emt 0:08:41]} Bf5 {[%emt 0:13:29]} 27. R1h7+ {[%emt 0:03:52]} Ke8 {[%emt 0:00:01]} 28. Rxe7+ {[%emt 0:00:58]} Kxe7 {[%emt 0:01:40]} 29. Rh7+ {[%emt 0:00:13]} Rf7 {[%emt 0:00:24]} 30. Qf6+ {[%emt 0:00:30]} 1-0

[Event "Satka Autumn 2019"]
[Site "Satka"]
[Date "2019.09.27"]
[Round "9.8"]
[White "Makarenko, Alexandra"]
[Black "Mar, Karmen"]
[Result "1-0"]
[ECO "B91"]
[WhiteElo "2169"]
[BlackElo "2026"]
[Annotator "ChessBase"]
[PlyCount "107"]
[EventDate "2019.09.19"]
[EventType "swiss"]
[EventCountry "RUS"]
[SourceTitle "playchess.com"]
[Source "ChessBase"]
[SourceQuality "1"]
[TimeControl "5400+30"]

1. e4 {[%emt 0:00:00]} c5 {[%emt 0:00:00]} 2. Nf3 {[%emt 0:00:00]} d6 {[%emt 0:00:00]} 3. d4 {[%emt 0:00:00]} cxd4 {[%emt 0:00:00]} 4. Nxd4 {[%emt 0:00:00]} Nf6 {[%emt 0:00:01]} 5. Nc3 {[%emt 0:00:00]} a6 {[%emt 0:00:08]} 6. g3 {[%emt 0:02:46]} e6 {[%emt 0:00:48]} 7. Bg2 {[%emt 0:00:05]} Be7 {[%emt 0:01:04]} 8. O-O {[%emt 0:00:16]} Qc7 {[%emt 0:03:48]} 9. Re1 {[%emt 0:00:18]} Bd7 {[%emt 0:04:02]} 10. a4 {[%emt 0:02:28]} Nc6 {[%emt 0:07:28]} 11. Be3 {[%emt 0:00:40]} O-O {[%emt 0:01:29]} 12. Nxc6 {[%emt 0:00:11]} Bxc6 {[%emt 0:03:28]} 13. a5 {[%emt 0:00:08]} Nd7 {[%emt 0:16:29]} 14. Na4 {[%emt 0:00:19]} Rac8 {[%emt 0:12:53]} 15. Nb6 {[%emt 0:04:33]} Nxb6 {[%emt 0:01:08]} 16. Bxb6 {[%emt 0:00:33]} Qd7 {[%emt 0:00:52]} 17. c4 {[%emt 0:04:01]} f5 {[%emt 0:09:42]} 18. Qd3 {[%emt 0:03:17]} f4 {[%emt 0:06:55]} 19. Rad1 {[%emt 0:01:53]} Qe8 {[%emt 0:01:58]} 20. b4 {[%emt 0:05:05]} Qh5 {[%emt 0:03:43]} 21. Bf3 {[%emt 0:07:29]} Qg5 {[%emt 0:08:00]} 22. Rb1 {[%emt 0:01:30]} h5 {[%emt 0:03:08]} 23. b5 {[%emt 0:02:03]} Be8 {[%emt 0:01:47]} 24. Rb3 {[%emt 0:08:05]} fxg3 {[%emt 0:04:43]} 25. hxg3 {[%emt 0:02:46]} h4 {[%emt 0:00:35]} 26. Bg2 {[%emt 0:06:27]} hxg3 {[%emt 0:02:51]} 27. fxg3 {[%emt 0:00:03]} Bg6 {[%emt 0:03:54]} 28. Bh3 {[%emt 0:06:14]} Bf7 {[%emt 0:01:04]} 29. Rf1 {[%emt 0:10:12]} Qh6 {[%emt 0:00:31]} 30. Kg2 {[%emt 0:00:58]} Bh5 {[%emt 0:00:30]} 31. Be3 {[%emt 0:07:44]} Qg6 {[%emt 0:00:27]} 32. e5 {[%emt 0:01:03]} Rxf1 {[%emt 0:01:21]} 33. Qxg6 {[%emt 0:01:37]} Bxg6 {[%emt 0:00:02]} 34. Bxe6+ {[%emt 0:01:31]} Bf7 {[%emt 0:01:02]} 35. Bxc8 {[%emt 0:00:09]} Bxc4 {[%emt 0:00:38]} 36. Rb4 {[%emt 0:03:53]} Be2 {[%emt 0:00:32]} 37. Rb2 {[%emt 0:00:54]} Bc4 {[%emt 0:00:27]} 38. Bxb7 {[%emt 0:05:20]} Ra1 {[%emt 0:00:41]} 39. bxa6 {[%emt 0:00:20]} Bxa6 {[%emt 0:00:36]} 40. Bxa6 {[%emt 0:00:00]} Rxa5 {[%emt 0:00:00]} 41. Bc4+ {[%emt 0:00:00]} d5 {[%emt 0:00:00]} 42. Bb6 {[%emt 0:00:00]} Ra1 {[%emt 0:00:00]} 43. Bxd5+ {[%emt 0:00:00]} Kh7 {[%emt 0:00:00]} 44. Be4+ {[%emt 0:00:00]} Kg8 {[%emt 0:00:00]} 45. e6 {[%emt 0:00:00]} Re1 {[%emt 0:00:00]} 46. Bd5 {[%emt 0:00:00]} g6 {[%emt 0:00:00]} 47. Bf2 {[%emt 0:00:00]} Rd1 {[%emt 0:00:00]} 48. Rb8+ {[%emt 0:00:00]} Kg7 {[%emt 0:00:00]} 49. Bb3 {[%emt 0:00:00]} Rd2 {[%emt 0:00:00]} 50. Kf3 {[%emt 0:00:00]} Kf6 {[%emt 0:00:00]} 51. Be3 {[%emt 0:00:00]} Rd6 {[%emt 0:00:00]} 52. Rb7 {[%emt 0:00:00]} Rd3 {[%emt 0:00:00]} 53. Ke4 {[%emt 0:00:00]} Rd8 {[%emt 0:00:00]} 54. Rxe7 {[%emt 0:00:00]} 1-0

[Event "Satka Autumn 2019"]
[Site "Satka"]
[Date "2019.09.27"]
[Round "9.9"]
[White "Petrenko, Svetlana"]
[Black "Eidelson, Rakhil"]
[Result "1/2-1/2"]
[ECO "A41"]
[WhiteElo "2200"]
[BlackElo "2064"]
[Annotator "ChessBase"]
[PlyCount "37"]
[EventDate "2019.09.19"]
[EventType "swiss"]
[EventCountry "RUS"]
[SourceTitle "playchess.com"]
[Source "ChessBase"]
[SourceQuality "1"]
[TimeControl "5400+30"]

1. d4 {[%emt 0:00:00]} d6 {[%emt 0:00:00]} 2. c4 {[%emt 0:00:05]} e5 {[%emt 0:00:50]} 3. dxe5 {[%emt 0:00:20]} dxe5 {[%emt 0:00:06]} 4. Qxd8+ {[%emt 0:00:04]} Kxd8 {[%emt 0:00:05]} 5. Nf3 {[%emt 0:00:35]} f6 {[%emt 0:00:35]} 6. Nc3 {[%emt 0:00:23]} Be6 {[%emt 0:00:49]} 7. e3 {[%emt 0:00:19]} Nd7 {[%emt 0:00:53]} 8. b3 {[%emt 0:00:32]} c6 {[%emt 0:05:57]} 9. Bb2 {[%emt 0:00:09]} Kc7 {[%emt 0:00:36]} 10. O-O-O {[%emt 0:00:16]} Nh6 {[%emt 0:00:36]} 11. h3 {[%emt 0:00:18]} a5 {[%emt 0:00:33]} 12. Na4 {[%emt 0:00:45]} Nf7 {[%emt 0:00:37]} 13. Be2 {[%emt 0:00:19]} Nc5 {[%emt 0:00:15]} 14. Nxc5 {[%emt 0:00:13]} Bxc5 {[%emt 0:00:17]} 15. Bc3 {[%emt 0:00:43]} Ba3+ {[%emt 0:00:16]} 16. Bb2 {[%emt 0:00:07]} Bc5 {[%emt 0:00:26]} 17. Bc3 {[%emt 0:00:10]} Ba3+ {[%emt 0:00:13]} 18. Bb2 {[%emt 0:00:08]} Bc5 {[%emt 0:00:09]} 19. Bc3 {[%emt 0:00:17]} 1/2-1/2

[Event "Satka Autumn 2019"]
[Site "Satka"]
[Date "2019.09.27"]
[Round "9.10"]
[White "Matsenko, Elena"]
[Black "Loskutova, Viktoriya"]
[Result "0-1"]
[ECO "B90"]
[WhiteElo "1841"]
[BlackElo "2162"]
[Annotator "NA"]
[PlyCount "90"]
[EventDate "2019.09.19"]
[EventType "swiss"]
[EventCountry "RUS"]
[SourceTitle "playchess.com"]
[Source "ChessBase"]
[SourceQuality "1"]
[TimeControl "5400+30"]

1. e4 {[%emt 0:00:00]} c5 {[%emt 0:00:00]} 2. Nf3 {[%emt 0:00:00]} d6 {[%emt 0:00:00]} 3. d4 {[%emt 0:00:00]} cxd4 {[%emt 0:00:00]} 4. Nxd4 {[%emt 0:00:00]} Nf6 {[%emt 0:00:00]} 5. Nc3 {[%emt 0:00:00]} a6 {[%emt 0:00:00]} 6. h3 {[%emt 0:00:09]} e5 {[%emt 0:05:07]} 7. Nde2 {[%emt 0:00:07]} h5 {[%emt 0:00:24]} 8. g3 {[%emt 0:00:08]} Be7 {[%emt 0:00:20]} 9. Bg2 {[%emt 0:00:10]} Be6 {[%emt 0:03:33]} 10. a4 {[%emt 0:00:34]} Nc6 {[%emt 0:01:09]} 11. O-O {[%emt 0:01:01]} Nb4 {[%emt 0:01:14]} 12. Be3 {[%emt 0:02:23]} d5 {[%emt 0:07:05]} 13. exd5 {[%emt 0:01:04]} Nbxd5 {[%emt 0:01:15]} 14. Bg5 {[%emt 0:01:50]} Rb8 {[%emt 0:06:27]} 15. Nxd5 {[%emt 0:03:24]} Nxd5 {[%emt 0:00:09]} 16. Bxe7 {[%emt 0:00:28]} Nxe7 {[%emt 0:06:06]} 17. Qxd8+ {[%emt 0:00:51]} Kxd8 {[%emt 0:00:05]} 18. b3 {[%emt 0:01:01]} Kc7 {[%emt 0:04:49]} 19. f4 {[%emt 0:05:23]} e4 {[%emt 0:05:00]} 20. Nd4 {[%emt 0:06:41]} Bd7 {[%emt 0:07:02]} 21. f5 {[%emt 0:02:59]} Nc6 {[%emt 0:00:07]} 22. Nxc6 {[%emt 0:00:54]} Bxc6 {[%emt 0:00:01]} 23. Rae1 {[%emt 0:00:19]} Rbe8 {[%emt 0:00:07]} 24. Re3 {[%emt 0:06:01]} Re5 {[%emt 0:01:07]} 25. Rf4 {[%emt 0:04:17]} Rhe8 {[%emt 0:02:16]} 26. g4 {[%emt 0:05:07]} hxg4 {[%emt 0:02:21]} 27. hxg4 {[%emt 0:00:11]} Kd6 {[%emt 0:03:09]} 28. Rf2 {[%emt 0:02:53]} g6 {[%emt 0:06:03]} 29. fxg6 {[%emt 0:01:23]} fxg6 {[%emt 0:00:07]} 30. Rf6+ {[%emt 0:02:50]} R8e6 {[%emt 0:00:12]} 31. Rf4 {[%emt 0:00:23]} g5 {[%emt 0:01:34]} 32. Rf2 {[%emt 0:01:09]} Rh6 {[%emt 0:05:55]} 33. Bf1 {[%emt 0:03:25]} Rh4 {[%emt 0:01:17]} 34. Be2 {[%emt 0:00:34]} Re6 {[%emt 0:01:57]} 35. Bd1 {[%emt 0:13:40]} Reh6 {[%emt 0:03:41]} 36. Kf1 {[%emt 0:00:45]} Rh1+ {[%emt 0:03:42]} 37. Ke2 {[%emt 0:00:16]} R6h2 {[%emt 0:00:30]} 38. Rxh2 {[%emt 0:00:20]} Rxh2+ {[%emt 0:00:03]} 39. Ke1 {[%emt 0:00:13]} Ke5 {[%emt 0:00:06]} 40. Be2 {[%emt 0:00:00]} Kf4 {[%emt 0:00:00]} 41. Rc3 {[%emt 0:00:00]} e3 {[%emt 0:00:00]} 42. Rc4+ {[%emt 0:00:00]} Kg3 {[%emt 0:00:00]} 43. Bd3 {[%emt 0:00:00]} Bf3 {[%emt 0:00:00]} 44. Rc3 {[%emt 0:00:00]} Rh1+ {[%emt 0:00:00]} 45. Bf1 {[%emt 0:00:00]} e2 {[%emt 0:00:00]} 0-1

[Event "Satka Autumn 2019"]
[Site "Satka"]
[Date "2019.09.27"]
[Round "9.11"]
[White "Filippova, Darya"]
[Black "Shamsutdinova, Karina"]
[Result "1-0"]
[ECO "A15"]
[WhiteElo "2110"]
[BlackElo "1747"]
[Annotator "NA"]
[PlyCount "63"]
[EventDate "2019.09.19"]
[EventType "swiss"]
[EventCountry "RUS"]
[SourceTitle "playchess.com"]
[Source "ChessBase"]
[SourceQuality "1"]
[TimeControl "5400+30"]

1. c4 {[%emt 0:00:00]} Nf6 {[%emt 0:00:20]} 2. b3 {[%emt 0:00:06]} b6 {[%emt 0:01:48]} 3. Bb2 {[%emt 0:00:21]} Bb7 {[%emt 0:01:49]} 4. d4 {[%emt 0:03:02]} d5 {[%emt 0:03:41]} 5. Nc3 {[%emt 0:08:50]} g6 {[%emt 0:03:00]} 6. e3 {[%emt 0:03:35]} Bg7 {[%emt 0:00:35]} 7. Nge2 {[%emt 0:03:27]} O-O {[%emt 0:05:36]} 8. Nf4 {[%emt 0:00:55]} dxc4 {[%emt 0:03:36]} 9. bxc4 {[%emt 0:01:49]} e6 {[%emt 0:00:58]} 10. Be2 {[%emt 0:07:03]} Na6 {[%emt 0:05:44]} 11. O-O {[%emt 0:00:40]} c5 {[%emt 0:04:41]} 12. Rb1 {[%emt 0:05:34]} cxd4 {[%emt 0:07:09]} 13. exd4 {[%emt 0:00:35]} Ne4 {[%emt 0:04:17]} 14. Nb5 {[%emt 0:05:29]} Bh6 {[%emt 0:12:58]} 15. Bc1 {[%emt 0:02:36]} Bg7 {[%emt 0:04:15]} 16. Rb3 {[%emt 0:06:05]} Nc7 {[%emt 0:05:36]} 17. Nxc7 {[%emt 0:04:35]} Qxc7 {[%emt 0:00:08]} 18. d5 {[%emt 0:08:22]} Be5 {[%emt 0:10:49]} 19. g3 {[%emt 0:06:37]} Nc3 {[%emt 0:07:28]} 20. Qd3 {[%emt 0:01:50]} Nxe2+ {[%emt 0:02:14]} 21. Qxe2 {[%emt 0:01:20]} Ba6 {[%emt 0:03:00]} 22. Rb4 {[%emt 0:00:37]} exd5 {[%emt 0:01:21]} 23. Nxd5 {[%emt 0:00:41]} Qd6 {[%emt 0:02:32]} 24. Qf3 {[%emt 0:02:48]} Bb7 {[%emt 0:02:38]} 25. Rb3 {[%emt 0:00:38]} Bc6 {[%emt 0:03:00]} 26. Ba3 {[%emt 0:01:49]} Bxd5 {[%emt 0:02:09]} 27. cxd5 {[%emt 0:00:29]} Qd7 {[%emt 0:00:23]} 28. Bxf8 {[%emt 0:00:26]} Rxf8 {[%emt 0:00:24]} 29. Re1 {[%emt 0:02:18]} Bd6 {[%emt 0:01:19]} 30. Qf6 {[%emt 0:00:56]} Bc5 {[%emt 0:00:31]} 31. Rd3 {[%emt 0:00:32]} Bd6 {[%emt 0:00:56]} 32. Re4 {[%emt 0:01:59]} 1-0

[Event "Satka Autumn 2019"]
[Site "Satka"]
[Date "2019.09.27"]
[Round "9.12"]
[White "Mirzaeva, Gulnara"]
[Black "Trapeznikova, Darya"]
[Result "1/2-1/2"]
[ECO "C55"]
[WhiteElo "1936"]
[BlackElo "2085"]
[Annotator "NA"]
[PlyCount "81"]
[EventDate "2019.09.19"]
[EventType "swiss"]
[EventCountry "RUS"]
[SourceTitle "playchess.com"]
[Source "ChessBase"]
[SourceQuality "1"]
[TimeControl "5400+30"]

1. e4 {[%emt 0:00:00]} e5 {[%emt 0:00:00]} 2. Nf3 {[%emt 0:00:00]} Nc6 {[%emt 0:00:00]} 3. Bc4 {[%emt 0:00:00]} Nf6 {[%emt 0:00:00]} 4. d3 {[%emt 0:00:00]} Be7 {[%emt 0:00:02]} 5. O-O {[%emt 0:00:00]} O-O {[%emt 0:00:09]} 6. c3 {[%emt 0:00:10]} d5 {[%emt 0:00:36]} 7. exd5 {[%emt 0:00:19]} Nxd5 {[%emt 0:00:05]} 8. Re1 {[%emt 0:00:19]} Bg4 {[%emt 0:02:43]} 9. h3 {[%emt 0:00:29]} Bh5 {[%emt 0:00:07]} 10. Nbd2 {[%emt 0:00:35]} Nb6 {[%emt 0:01:23]} 11. Bb5 {[%emt 0:04:09]} f6 {[%emt 0:01:44]} 12. Ne4 {[%emt 0:01:55]} a6 {[%emt 0:02:19]} 13. Bxc6 {[%emt 0:01:26]} bxc6 {[%emt 0:00:05]} 14. Ng3 {[%emt 0:00:21]} Bxf3 {[%emt 0:08:05]} 15. Qxf3 {[%emt 0:00:52]} Qd5 {[%emt 0:02:03]} 16. Qxd5+ {[%emt 0:00:35]} cxd5 {[%emt 0:01:54]} 17. Nf5 {[%emt 0:04:00]} Rfe8 {[%emt 0:04:01]} 18. Nxe7+ {[%emt 0:01:46]} Rxe7 {[%emt 0:00:04]} 19. Be3 {[%emt 0:00:29]} Na4 {[%emt 0:01:32]} 20. Re2 {[%emt 0:11:43]} Rb8 {[%emt 0:00:22]} 21. Bc1 {[%emt 0:01:35]} c6 {[%emt 0:31:44]} 22. Kf1 {[%emt 0:09:11]} Reb7 {[%emt 0:03:23]} 23. b3 {[%emt 0:01:12]} Nxc3 {[%emt 0:01:32]} 24. Rc2 {[%emt 0:00:06]} d4 {[%emt 0:00:34]} 25. Bd2 {[%emt 0:00:17]} e4 {[%emt 0:11:01]} 26. Bxc3 {[%emt 0:00:53]} exd3 {[%emt 0:00:06]} 27. Rd2 {[%emt 0:00:59]} dxc3 {[%emt 0:00:04]} 28. Rxd3 {[%emt 0:00:03]} a5 {[%emt 0:00:27]} 29. Rc1 {[%emt 0:01:22]} a4 {[%emt 0:00:33]} 30. bxa4 {[%emt 0:02:42]} Ra7 {[%emt 0:01:33]} 31. Rdxc3 {[%emt 0:00:24]} Rxa4 {[%emt 0:00:05]} 32. Rxc6 {[%emt 0:00:08]} Rxa2 {[%emt 0:00:06]} 33. Rc8+ {[%emt 0:00:09]} Rxc8 {[%emt 0:00:04]} 34. Rxc8+ {[%emt 0:00:04]} Kf7 {[%emt 0:00:03]} 35. Rc7+ {[%emt 0:00:13]} Kg6 {[%emt 0:00:13]} 36. g3 h5 37. h4 {[%emt 0:00:11]} Rb2 {[%emt 0:00:18]} 38. Kg2 {[%emt 0:00:06]} Ra2 {[%emt 0:00:08]} 39. Kf3 {[%emt 0:00:12]} Ra3+ {[%emt 0:00:12]} 40. Kf4 {[%emt 0:00:00]} Ra4+ {[%emt 0:00:00]} 41. Kf3 {[%emt 0:00:00]} 1/2-1/2